[Event "ESP-ch Teams Primera 2022"]
[Site "Sanxenxo Pontevedra"]
[Date "2022.09.17"]
[Round "1.10"]
[White "Abal Cores, Lucas"]
[Black "Martinez Ramirez, Erik"]
[Result "1-0"]
[ECO "B33"]
[WhiteElo "2291"]
[BlackElo "2181"]
[Annotator "ChessBase"]
[PlyCount "73"]
[EventDate "2022.09.17"]
[EventType "team-tourn"]
[EventCountry "ESP"]
[SourceTitle "playchess.com"]
[Source "ChessBase"]
[SourceQuality "1"]
[TimeControl "5400+30"]

1. e4 c5 2. Nf3 Nc6 3. d4 cxd4 4. Nxd4 Nf6 5. Nc3 e5 6. Ndb5 d6 7. Bg5 a6 8. Na3 b5 9. Bxf6 gxf6 10. Nd5 Bg7 11. c3 Ne7 12. Nxe7 Qxe7 13. Nc2 f5 14. exf5 d5 15. Qxd5 Bb7 16. Qd1 Qh4 17. Ne3 h5 18. g3 Qf6 19. Bg2 Bxg2 20. Nxg2 Qxf5 21. Ne3 Qf6 22. a4 Rd8 23. Qe2 h4 24. axb5 hxg3 25. fxg3 axb5 26. Qxb5+ Kf8 27. Qe2 Bh6 28. Ng4 Qb6 29. Ra6 Qc5 30. Nxh6 e4 31. Rf1 Rh7 32. Qxe4 Qg5 33. Qb4+ Ke8 34. Re6+ fxe6 35. Rf8+ Kd7 36. Qb7+ Kd6 37. Rxd8+ 1-0

[Event "ESP-ch Teams Primera 2022"]
[Site "Sanxenxo Pontevedra"]
[Date "2022.09.17"]
[Round "1.11"]
[White "Bosque Ortega, Xavier"]
[Black "Rodriguez Ferreiros, Andres"]
[Result "1-0"]
[ECO "D02"]
[WhiteElo "2164"]
[BlackElo "2110"]
[Annotator "TA"]
[PlyCount "89"]
[EventDate "2022.09.17"]
[EventType "team-tourn"]
[EventCountry "ESP"]
[SourceTitle "playchess.com"]
[Source "ChessBase"]
[SourceQuality "1"]
[TimeControl "5400+30"]

{[%evp 9,89,12,10,20,42,14,12,16,34,0,6,31,29,0,0,-14,-18,-39,0,0,0,0,0,0,0,0,0,0,9,2,18,4,44,47,37,56,36,25,18,19,36,0,0,0,0,0,117,116,333,328,322,329,329,329,293,113,153,95,94,94,345,281,503,462,447,350,1637,1629,1410,1084,982,737,4602,4924,5181,4399,3250,1602,29962,29959,11661,11661]} 1. d4 d5 2. Nf3 c5 3. c3 Nc6 4. Bf4 f6 5. e3 cxd4 6. cxd4 {D02: 1 d4 d5 2 Nf3 sidelines, including 2...Nf6 3 g3 and 2...Nf6 3 Bf4.} g5 7. Bg3 h5 8. h3 {The position is equal.} Nh6 {[#]} 9. Bd3 $146 ({Predecessor:} 9. Nc3 Be6 10. Bd3 Nf5 11. Bxf5 Bxf5 12. Qb3 e6 13. Qxb7 Rc8 14. O-O Bd3 15. Nb5 {1-0 (60) Otawa,Y (2128)-Otsuka,S Tokyo 2021}) 9... Bf5 10. Nc3 e6 11. Bh2 Bd6 12. Bxf5 Nxf5 13. Qb3 Bxh2 14. Qxb7 Nfe7 {Threatens to win with ...Bd6.} 15. Nxh2 ({Reject} 15. Rxh2 Rb8 16. Qa6 Rxb2 $15) 15... Rb8 {[%mdl 64] Deflection} 16. Qa6 Rxb2 17. O-O Kf7 18. Rab1 Rxb1 (18... Qb6 $5 19. Qd3 Nb4 $11) 19. Rxb1 {Threatening Rb7.} Qa5 20. Qd3 Nb4 21. Qd1 Nxa2 22. Nxa2 Qxa2 23. Ra1 {[%cal Bb1a1,Ba1a7,Ba7a6][%mdl 96] Deflection} (23. Rb7 {keeps more tension.} Qa3 24. Qc2 Qa1+ 25. Nf1) 23... Qb2 24. Rxa7 Qb6 25. Qa1 Rb8 26. Nf1 Rb7 27. Ra6 Qb4 (27... Qb1 $11 {remains equal.}) 28. Qd1 $16 Rb6 $2 (28... Qb1 $16 {was necessary.} 29. Qxh5+ Qg6) 29. Qxh5+ $18 Kg7 30. Ra7 Rb7 31. Rxb7 ({Weaker is} 31. Ra8 Ng6 32. Qg4 Kf7 $16) 31... Qxb7 {[%mdl 4096] Endgame [#] KQN-KQN} 32. Qg4 $2 (32. Qe8 $1 $18 {and the rest is easy.}) 32... Nf5 {[#]} 33. Ng3 (33. h4 $142 $1) 33... Nxg3 34. Qxg3 $16 {Hoping for h4. KQ-KQ} Qb1+ $2 (34... Kf7 $16) 35. Kh2 $18 {aiming for Qc7+.} Kf7 $2 (35... Qf5 36. h4 Kf7) 36. Qc7+ Kg6 37. Qc8 Qe4 $2 (37... Qf5 38. Qg8+ Kh6) 38. Qg8+ Kh6 39. Qf7 Qf5 40. f3 {And now Kg3 would win.} e5 41. Qxd5 Kg7 42. Qe4 Qe6 43. dxe5 fxe5 44. Qg4 Qf6 45. h4 {Weighted Error Value: White=0.12 (very precise) /Black=0.47} 1-0

[Event "ESP-ch Teams Primera 2022"]
[Site "Sanxenxo Pontevedra"]
[Date "2022.09.17"]
[Round "1.12"]
[White "Dorado Meijide, Andrea"]
[Black "Castillo Escario, Yolanda"]
[Result "1-0"]
[ECO "C60"]
[WhiteElo "1801"]
[BlackElo "2035"]
[Annotator "TA"]
[PlyCount "93"]
[EventDate "2022.09.17"]
[EventType "team-tourn"]
[EventCountry "ESP"]
[SourceTitle "playchess.com"]
[Source "ChessBase"]
[SourceQuality "1"]
[TimeControl "5400+30"]

{[%evp 16,93,14,16,9,0,0,-11,0,0,15,18,28,12,31,13,26,27,48,48,53,26,22,0,24,11,17,14,23,0,0,-109,-109,-109,-109,-109,-110,-100,-100,-124,-76,-137,-129,-157,-109,-150,-102,-103,-29,-101,-11,-6,-6,-4,-13,-57,-50,-123,-127,-120,-113,-1074,0,0,0,0,0,0,143,143,29962,29966,844,797,29980,29981,29981,29981,29981,29982]} 1. e4 e5 2. Nf3 Nc6 3. Bb5 Nge7 4. O-O g6 5. d4 exd4 6. Nxd4 Bg7 7. Nxc6 bxc6 8. Bc4 O-O 9. Nc3 Rb8 {C60: Ruy Lopez: Unusual Black 3rd moves and 3...g6.} 10. Qe2 d6 11. Rd1 Be6 {The position is equal.} 12. Bb3 Qc8 13. Bg5 f6 14. Be3 {[#]} a5 $146 ({Predecessor:} 14... c5 15. Nd5 Nxd5 16. exd5 Bd7 17. Bd2 Re8 18. Qd3 f5 19. Bc3 Bxc3 20. Qxc3 Rb4 {1-0 (46) Zachary,M (1965)-Bacrot,A (1892) Pau 2015}) 15. Qd2 Bf7 16. Bh6 Qg4 17. Bxg7 Kxg7 18. Qe3 c5 19. h3 Qc8 20. Bxf7 Rxf7 21. b3 Qe6 22. Nd5 Nxd5 23. exd5 (23. Rxd5 $11 {was the only way to keep the balance.} a4 24. Rad1 (24. bxa4 Re7 $11)) 23... Qxe3 $17 24. fxe3 $11 {[%mdl 4096] Endgame KRR-KRR} Re7 25. Kf2 Rbe8 26. Rd3 Re4 27. Rf1 a4 ({Better is} 27... h5) 28. Ra1 (28. g4 $142) 28... f5 29. g3 Kf6 (29... g5 $142 30. c4 h5) 30. Rf1 Ke7 (30... g5 $142 31. Rg1 h5) 31. Ke2 $17 Kd7 (31... axb3 $17 32. cxb3 Ra8) 32. Kd2 (32. Rf4 $11) 32... c4 (32... axb3 $17 {Threatens to win with ...c4.} 33. axb3 Ke7) 33. bxc4 $11 Rxc4 34. Rf4 Ree4 35. Rxe4 Rxe4 {KR-KR} ({Reject} 35... fxe4 36. Rd4 Rxd4+ 37. exd4 $11) 36. c3 (36. a3 $15) 36... c6 $17 37. dxc6+ Kxc6 38. Rd4 $2 {[%mdl 8192] [#]} (38. Ke2 $17) 38... Kc5 $2 (38... Rxd4+ $1 $19 39. cxd4 Kd5) 39. Kd3 $11 d5 {aiming for ...Rxd4+.} 40. a3 g5 41. g4 fxg4 (41... f4 $1 $11 {remains equal.} 42. exf4 (42. Rxe4 $2 dxe4+ 43. Kxe4 fxe3 $19) 42... Rxf4) 42. hxg4 $16 Rxd4+ {[%mdl 8192]} (42... Re8 $16) 43. cxd4+ $11 {KP-KP} Kb5 44. e4 dxe4+ 45. Kxe4 {White mates.} Kc6 46. d5+ Kd6 {[#]} 47. Kd4 $1 {Weighted Error Value: White=0.36/Black=0.65} 1-0

[Event "ESP-ch Teams Primera 2022"]
[Site "Sanxenxo Pontevedra"]
[Date "2022.09.17"]
[Round "1.13"]
[White "Cordova, Emilio"]
[Black "Espinosa Aranda, Angel"]
[Result "1/2-1/2"]
[ECO "A06"]
[WhiteElo "2550"]
[BlackElo "2428"]
[Annotator "ChessBase"]
[PlyCount "158"]
[EventDate "2022.09.17"]
[EventType "team-tourn"]
[EventCountry "ESP"]
[SourceTitle "playchess.com"]
[Source "ChessBase"]
[SourceQuality "1"]
[TimeControl "5400+30"]

1. Nf3 {[%emt 0:00:05]} d5 {[%emt 0:00:17]} 2. g3 {[%emt 0:00:28]} g6 {[%emt 0:01:45]} 3. Bg2 {[%emt 0:01:33]} Bg7 {[%emt 0:00:19]} 4. d4 {[%emt 0:00:15]} Nf6 {[%emt 0:01:04]} 5. O-O {[%emt 0:00:42]} O-O {[%emt 0:00:24]} 6. c4 {[%emt 0:00:20]} dxc4 {[%emt 0:01:40]} 7. Na3 {[%emt 0:00:09]} c3 {[%emt 0:00:42]} 8. bxc3 {[%emt 0:00:06]} c5 {[%emt 0:00:08]} 9. e3 {[%emt 0:00:50]} Nc6 {[%emt 0:01:51]} 10. Qe2 {[%emt 0:00:45]} Qa5 {[%emt 0:07:48]} 11. Bb2 {[%emt 0:03:30]} Bf5 {[%emt 0:05:58]} 12. Nd2 {[%emt 0:08:59]} cxd4 {[%emt 0:13:12]} 13. cxd4 {[%emt 0:00:21]} Rac8 {[%emt 0:01:45]} 14. Nb3 {[%emt 0:08:58]} Qb6 {[%emt 0:04:48]} 15. Rfc1 {[%emt 0:16:00]} Rfd8 {[%emt 0:12:00]} 16. Nc4 {[%emt 0:04:10]} Qb5 {[%emt 0:05:22]} 17. Nc5 {[%emt 0:00:55]} Nb4 {[%emt 0:08:03]} 18. a4 {[%emt 0:00:55]} Qe8 {[%emt 0:01:26]} 19. Nxb7 {[%emt 0:03:06]} Nd3 {[%emt 0:06:34]} 20. Nxd8 {[%emt 0:06:15]} Nxc1 {[%emt 0:00:36]} 21. Rxc1 {[%emt 0:00:47]} Rxd8 {[%emt 0:00:22]} 22. Ne5 {[%emt 0:09:13]} Qxa4 {[%emt 0:02:17]} 23. Nc6 {[%emt 0:11:51]} Re8 {[%emt 0:00:12]} 24. Ra1 {[%emt 0:00:33]} Qb3 {[%emt 0:04:06]} 25. Rxa7 {[%emt 0:00:44]} Bf8 {[%emt 0:00:07]} 26. Ra3 {[%emt 0:08:27]} Qb6 {[%emt 0:00:42]} 27. d5 {[%emt 0:00:30]} Be4 {[%emt 0:04:30]} 28. Bxe4 {[%emt 0:02:40]} Nxe4 {[%emt 0:00:07]} 29. Qc2 {[%emt 0:00:29]} Nd6 {[%emt 0:02:57]} 30. Qc3 {[%emt 0:04:33]} f6 {[%emt 0:00:10]} 31. Rb3 {[%emt 0:00:25]} Qa6 {[%emt 0:00:32]} 32. Qd3 {[%emt 0:02:34]} Qxd3 33. Rxd3 {[%emt 0:00:04]} Nc4 {[%emt 0:06:08]} 34. Rb3 {[%emt 0:00:51]} Nxb2 {[%emt 0:04:14]} 35. Rxb2 {[%emt 0:00:05]} e6 {[%emt 0:00:03]} 36. dxe6 {[%emt 0:00:56]} Rxe6 {[%emt 0:00:05]} 37. Nd4 {[%emt 0:00:23]} Re7 {[%emt 0:00:29]} 38. g4 {[%emt 0:00:29]} Kf7 {[%emt 0:00:22]} 39. Kg2 {[%emt 0:00:09]} Rd7 {[%emt 0:01:25]} 40. Rb5 {[%emt 0:00:23]} Bg7 {[%emt 0:01:49]} 41. Nb3 {[%emt 0:00:24]} Bf8 {[%emt 0:00:26]} 42. h3 {[%emt 0:00:18]} Be7 {[%emt 0:00:51]} 43. Nd4 {[%emt 0:00:14]} Rc7 {[%emt 0:00:48]} 44. Kf3 {[%emt 0:00:24]} Bc5 {[%emt 0:00:41]} 45. Ne2 {[%emt 0:01:48]} Bd6 {[%emt 0:00:22]} 46. Ke4 {[%emt 0:00:12]} Be7 {[%emt 0:00:38]} 47. Nf4 {[%emt 0:00:18]} Ra7 {[%emt 0:00:17]} 48. Nd5 {[%emt 0:00:32]} Ra4+ {[%emt 0:01:14]} 49. Kf3 {[%emt 0:00:06]} Ra7 {[%emt 0:00:07]} 50. Rb6 {[%emt 0:00:20]} Bd8 {[%emt 0:02:01]} 51. Rc6 {[%emt 0:00:18]} Be7 {[%emt 0:00:14]} 52. Kg3 {[%emt 0:00:52]} Rd7 {[%emt 0:00:16]} 53. Nb6 {[%emt 0:02:27]} Ra7 {[%emt 0:01:16]} 54. Nc4 {[%emt 0:00:13]} Ke8 {[%emt 0:00:32]} 55. Rc8+ {[%emt 0:00:09]} Kf7 {[%emt 0:00:05]} 56. f4 {[%emt 0:00:13]} Rb7 {[%emt 0:00:36]} 57. h4 {[%emt 0:01:09]} Rd7 {[%emt 0:00:48]} 58. g5 {[%emt 0:00:49]} Rb7 {[%emt 0:00:49]} 59. Rc6 {[%emt 0:01:08]} Ra7 {[%emt 0:00:15]} 60. gxf6 {[%emt 0:00:51]} Bxf6 {[%emt 0:00:22]} 61. Nd6+ {[%emt 0:02:30]} Kf8 {[%emt 0:00:22]} 62. Nb5 {[%emt 0:01:07]} Rf7 {[%emt 0:00:07]} 63. Nc7 {[%emt 0:00:13]} Be7 {[%emt 0:01:03]} 64. Nd5 {[%emt 0:00:38]} Bd8 {[%emt 0:00:15]} 65. e4 {[%emt 0:00:27]} Ra7 {[%emt 0:00:18]} 66. Rc8 {[%emt 0:00:16]} Rd7 {[%emt 0:01:32]} 67. h5 {[%emt 0:00:51]} gxh5 {[%emt 0:00:34]} 68. f5 {[%emt 0:00:06]} Kf7 {[%emt 0:00:08]} 69. Kf4 {[%emt 0:00:09]} h4 {[%emt 0:00:19]} 70. Kg4 {[%emt 0:00:05]} Rd6 {[%emt 0:00:35]} 71. Nf4 {[%emt 0:00:08]} Rd4 {[%emt 0:01:15]} 72. Kf3 {[%emt 0:00:19]} Bf6 {[%emt 0:00:16]} 73. Rc7+ {[%emt 0:00:11]} Kg8 {[%emt 0:00:33]} 74. Nh5 {[%emt 0:00:12]} Be5 {[%emt 0:00:26]} 75. Re7 {[%emt 0:00:05]} Rd3+ {[%emt 0:00:25]} 76. Ke2 {[%emt 0:01:10]} h3 {[%emt 0:00:12]} 77. Rxe5 {[%emt 0:01:35]} h2 {[%emt 0:00:05]} 78. Re8+ {[%emt 0:01:35]} Kf7 {[%emt 0:00:06]} 79. Rh8 {[%emt 0:00:04]} h1=Q {[%emt 0:01:23]} 1/2-1/2

[Event "ESP-ch Teams Primera 2022"]
[Site "Sanxenxo Pontevedra"]
[Date "2022.09.17"]
[Round "1.14"]
[White "Rubio Mejia, Luis Ignacio"]
[Black "Krysa, Leandro"]
[Result "0-1"]
[ECO "A06"]
[WhiteElo "2399"]
[BlackElo "2535"]
[Annotator "ChessBase"]
[PlyCount "105"]
[EventDate "2022.09.17"]
[EventType "team-tourn"]
[EventCountry "ESP"]
[SourceTitle "playchess.com"]
[Source "ChessBase"]
[SourceQuality "1"]
[TimeControl "5400+30"]

1. c4 {[%emt 0:00:04]} Nf6 {[%emt 0:00:12]} 2. Nf3 {[%emt 0:00:48]} e6 {[%emt 0:00:38]} 3. b3 {[%emt 0:01:04]} d5 {[%emt 0:01:27]} 4. e3 {[%emt 0:01:58]} c5 {[%emt 0:03:09]} 5. Bb2 {[%emt 0:01:04]} Nc6 {[%emt 0:00:24]} 6. cxd5 {[%emt 0:00:14]} exd5 {[%emt 0:00:08]} 7. Bb5 {[%emt 0:00:57]} Bd6 {[%emt 0:00:21]} 8. O-O {[%emt 0:03:16]} O-O {[%emt 0:00:14]} 9. d4 {[%emt 0:02:28]} cxd4 {[%emt 0:00:20]} 10. Nxd4 {[%emt 0:00:28]} Bc7 {[%emt 0:00:20]} 11. Nd2 {[%emt 0:05:29]} Nxd4 {[%emt 0:02:33]} 12. Bxd4 {[%emt 0:00:50]} Qd6 {[%emt 0:00:17]} 13. g3 {[%emt 0:10:47]} Ba5 {[%emt 0:01:54]} 14. a3 {[%emt 0:06:18]} Bh3 {[%emt 0:09:31]} 15. Re1 {[%emt 0:00:40]} Bxd2 {[%emt 0:04:32]} 16. Qxd2 {[%emt 0:00:23]} Ne4 {[%emt 0:00:27]} 17. Qb2 {[%emt 0:07:30]} Qg6 {[%emt 0:03:03]} 18. Bd3 {[%emt 0:11:20]} Bf5 {[%emt 0:05:29]} 19. Be2 {[%emt 0:11:49]} Rfe8 {[%emt 0:12:12]} 20. Rac1 {[%emt 0:10:18]} h5 {[%emt 0:06:31]} 21. Bf1 {[%emt 0:06:08]} Ng5 {[%emt 0:20:16]} 22. Bg2 {[%emt 0:02:31]} Be4 {[%emt 0:04:43]} 23. Qe2 {[%emt 0:09:56]} Qf5 {[%emt 0:06:38]} 24. f4 {[%emt 0:02:14]} Nh3+ {[%emt 0:04:54]} 25. Kh1 {[%emt 0:03:07]} Rac8 {[%emt 0:08:05]} 26. Bxa7 {[%emt 0:01:01]} Ra8 {[%emt 0:03:17]} 27. Bc5 {[%emt 0:00:39]} Ra6 {[%emt 0:00:18]} 28. Rf1 {[%emt 0:00:24]} Rg6 {[%emt 0:00:38]} 29. Bxe4 {[%emt 0:00:28]} dxe4 {[%emt 0:00:35]} 30. Bd4 {[%emt 0:00:21]} b6 {[%emt 0:00:35]} 31. a4 {[%emt 0:00:24]} h4 {[%emt 0:00:16]} 32. gxh4 {[%emt 0:00:29]} Rh6 {[%emt 0:01:20]} 33. a5 {[%emt 0:00:30]} bxa5 {[%emt 0:00:27]} 34. Rc5 {[%emt 0:00:47]} Qd7 {[%emt 0:00:41]} 35. h5 {[%emt 0:00:41]} Rc8 {[%emt 0:00:44]} 36. Rfc1 {[%emt 0:00:28]} Rxc5 {[%emt 0:00:24]} 37. Rxc5 {[%emt 0:00:04]} Nxf4 {[%emt 0:00:08]} 38. Qb5 {[%emt 0:00:38]} Qxb5 {[%emt 0:01:12]} 39. Rxb5 {[%emt 0:00:06]} Ne2 {[%emt 0:00:25]} 40. Bb2 {[%emt 0:01:14]} Rc6 {[%emt 0:00:22]} 41. Rxa5 {[%emt 0:00:31]} Rc2 {[%emt 0:00:27]} 42. Ba3 {[%emt 0:00:32]} Rc3 {[%emt 0:00:39]} 43. Bc5 {[%emt 0:00:27]} Rxb3 {[%emt 0:00:32]} 44. Kg2 {[%emt 0:00:27]} Nc3 {[%emt 0:00:40]} 45. Kf2 {[%emt 0:00:28]} Nd5 {[%emt 0:00:29]} 46. Bd4 {[%emt 0:00:22]} Nc7 {[%emt 0:00:22]} 47. Re5 {[%emt 0:00:24]} Rb5 {[%emt 0:00:21]} 48. Kg3 {[%emt 0:00:44]} Kh7 {[%emt 0:00:44]} 49. Rxe4 {[%emt 0:00:37]} Ne6 {[%emt 0:00:28]} 50. Re5 {[%emt 0:00:24]} Rb3 {[%emt 0:00:33]} 51. Kg4 {[%emt 0:00:35]} Rd3 {[%emt 0:00:23]} 52. Re4 {[%emt 0:00:28]} Rd2 {[%emt 0:00:28]} 53. Kg3 0-1

[Event "ESP-ch Teams Primera 2022"]
[Site "Sanxenxo Pontevedra"]
[Date "2022.09.17"]
[Round "1.15"]
[White "Ushenina, Anna"]
[Black "Almagro Llamas, Pablo"]
[Result "1/2-1/2"]
[ECO "E06"]
[WhiteElo "2439"]
[BlackElo "2407"]
[Annotator "ChessBase"]
[PlyCount "103"]
[EventDate "2022.09.17"]
[EventType "team-tourn"]
[EventCountry "ESP"]
[SourceTitle "playchess.com"]
[Source "ChessBase"]
[SourceQuality "1"]
[TimeControl "5400+30"]

1. d4 {[%emt 0:00:11]} Nf6 {[%emt 0:00:19]} 2. c4 {[%emt 0:00:16]} e6 {[%emt 0:00:19]} 3. g3 {[%emt 0:01:00]} d5 {[%emt 0:01:38]} 4. Nf3 {[%emt 0:00:53]} Be7 {[%emt 0:00:25]} 5. Bg2 {[%emt 0:00:44]} O-O {[%emt 0:00:54]} 6. O-O {[%emt 0:00:20]} dxc4 {[%emt 0:02:41]} 7. Qa4 {[%emt 0:00:54]} Bd7 {[%emt 0:02:58]} 8. Qxc4 {[%emt 0:00:13]} Bc6 {[%emt 0:00:10]} 9. Nc3 {[%emt 0:01:39]} Nbd7 {[%emt 0:03:25]} 10. Qd3 {[%emt 0:30:07]} Bb4 {[%emt 0:14:23]} 11. Rd1 {[%emt 0:21:25]} Qe7 {[%emt 0:07:40]} 12. Bf4 {[%emt 0:03:56]} Rac8 {[%emt 0:10:46]} 13. a3 {[%emt 0:05:25]} Bxc3 {[%emt 0:06:52]} 14. bxc3 {[%emt 0:00:01]} Be4 {[%emt 0:01:37]} 15. Qb5 {[%emt 0:04:19]} c5 {[%emt 0:11:38]} 16. Ne1 {[%emt 0:06:16]} Bxg2 {[%emt 0:03:47]} 17. Kxg2 {[%emt 0:00:01]} Nb6 {[%emt 0:03:53]} 18. Bg5 {[%emt 0:04:47]} Nbd5 {[%emt 0:10:27]} 19. Qb2 {[%emt 0:00:41]} h6 {[%emt 0:00:55]} 20. Bxf6 {[%emt 0:00:34]} Qxf6 {[%emt 0:01:31]} 21. e4 {[%emt 0:03:06]} Nb6 {[%emt 0:03:22]} 22. a4 {[%emt 0:01:52]} Rc7 {[%emt 0:00:28]} 23. a5 {[%emt 0:01:13]} Nc4 24. Qe2 {[%emt 0:00:07]} cxd4 {[%emt 0:02:11]} 25. cxd4 {[%emt 0:02:18]} Rfc8 {[%emt 0:06:12]} 26. Nf3 {[%emt 0:04:02]} a6 {[%emt 0:00:20]} 27. Ra2 {[%emt 0:04:43]} Qe7 {[%emt 0:00:27]} 28. Rb1 {[%emt 0:00:24]} Nd6 {[%emt 0:00:29]} 29. Rb3 {[%emt 0:00:25]} Nb5 {[%emt 0:00:55]} 30. Rd2 {[%emt 0:01:26]} Rc1 {[%emt 0:00:53]} 31. h4 Qc7 32. d5 {[%emt 0:00:43]} exd5 {[%emt 0:01:16]} 33. exd5 {[%emt 0:00:06]} Qc4 {[%emt 0:03:17]} 34. Rbd3 {[%emt 0:00:33]} Nc3 {[%emt 0:00:37]} 35. Qe7 {[%emt 0:01:28]} Nxd5 {[%emt 0:00:14]} 36. Qxb7 {[%emt 0:00:24]} Nb4 {[%emt 0:00:27]} 37. Ne5 {[%emt 0:00:59]} Qc7 {[%emt 0:00:54]} 38. Qxc8+ {[%emt 0:01:13]} Qxc8 {[%emt 0:00:07]} 39. Rd8+ {[%emt 0:00:02]} Kh7 {[%emt 0:00:32]} 40. Rxc8 {[%emt 0:00:03]} Rxc8 {[%emt 0:00:03]} 41. Nxf7 {[%emt 0:01:19]} Rc5 {[%emt 0:00:17]} 42. Rb2 {[%emt 0:00:22]} Nd5 {[%emt 0:00:51]} 43. Rb8 {[%emt 0:00:24]} Nf6 {[%emt 0:00:50]} 44. f3 {[%emt 0:00:49]} Rxa5 {[%emt 0:00:38]} 45. g4 {[%emt 0:00:13]} h5 {[%emt 0:00:43]} 46. g5 {[%emt 0:00:19]} Nd5 {[%emt 0:00:21]} 47. Re8 {[%emt 0:00:39]} Kg6 {[%emt 0:00:35]} 48. Nd6 {[%emt 0:00:26]} Nf4+ {[%emt 0:00:38]} 49. Kg3 {[%emt 0:00:07]} Ra4 {[%emt 0:00:06]} 50. Re7 {[%emt 0:00:31]} Nd5 {[%emt 0:00:41]} 51. Re6+ {[%emt 0:00:07]} Kh7 {[%emt 0:00:12]} 52. g6+ {[%emt 0:00:06]} 1/2-1/2

[Event "ESP-ch Teams Primera 2022"]
[Site "Sanxenxo Pontevedra"]
[Date "2022.09.17"]
[Round "1.16"]
[White "Garcia Cuenca, Victor"]
[Black "Ladron De Guevara Pinto, Paolo"]
[Result "1/2-1/2"]
[ECO "E52"]
[WhiteElo "2369"]
[BlackElo "2429"]
[Annotator "ChessBase"]
[PlyCount "60"]
[EventDate "2022.09.17"]
[EventType "team-tourn"]
[EventCountry "ESP"]
[SourceTitle "playchess.com"]
[Source "ChessBase"]
[SourceQuality "1"]
[TimeControl "5400+30"]

1. d4 {[%emt 0:00:03]} Nf6 {[%emt 0:00:06]} 2. c4 {[%emt 0:00:09]} e6 {[%emt 0:00:06]} 3. Nc3 {[%emt 0:00:05]} Bb4 {[%emt 0:00:06]} 4. e3 {[%emt 0:00:03]} O-O {[%emt 0:00:24]} 5. Bd3 {[%emt 0:00:03]} d5 {[%emt 0:00:40]} 6. Nf3 {[%emt 0:00:06]} b6 {[%emt 0:00:45]} 7. O-O {[%emt 0:07:47]} Bb7 {[%emt 0:00:17]} 8. a3 {[%emt 0:01:47]} Bd6 {[%emt 0:00:06]} 9. b4 {[%emt 0:05:07]} dxc4 {[%emt 0:02:33]} 10. Bxc4 {[%emt 0:00:06]} a5 {[%emt 0:00:05]} 11. b5 {[%emt 0:14:28]} Nbd7 {[%emt 0:00:40]} 12. Bb2 {[%emt 0:01:50]} e5 {[%emt 0:18:08]} 13. Ne2 {[%emt 0:17:40]} Ng4 {[%emt 0:13:33]} 14. dxe5 {[%emt 0:18:40]} Ndxe5 {[%emt 0:02:07]} 15. Nxe5 {[%emt 0:00:26]} Nxe5 {[%emt 0:18:18]} 16. Bxe5 {[%emt 0:14:01]} Bxe5 {[%emt 0:00:12]} 17. Qxd8 {[%emt 0:00:06]} Rfxd8 {[%emt 0:00:51]} 18. Rad1 {[%emt 0:00:06]} a4 {[%emt 0:01:18]} 19. Nd4 {[%emt 0:01:08]} Bxd4 {[%emt 0:19:16]} 20. Rxd4 {[%emt 0:02:39]} Rxd4 {[%emt 0:00:05]} 21. exd4 {[%emt 0:00:03]} Rd8 {[%emt 0:03:06]} 22. Rd1 {[%emt 0:00:15]} Kf8 {[%emt 0:00:04]} 23. f3 {[%emt 0:00:23]} c5 {[%emt 0:07:39]} 24. bxc6 {[%emt 0:00:44]} Bxc6 {[%emt 0:00:05]} 25. Kf2 {[%emt 0:01:18]} Bd5 {[%emt 0:02:34]} 26. Bb5 {[%emt 0:06:49]} Bb3 {[%emt 0:00:12]} 27. Re1 {[%emt 0:01:02]} g6 {[%emt 0:00:59]} 28. Ke3 {[%emt 0:00:38]} Rc8 {[%emt 0:02:19]} 29. Bd3 {[%emt 0:02:23]} Ke7 {[%emt 0:00:43]} 30. Kd2+ {[%emt 0:00:34]} Kd6 {[%emt 0:00:30]} 1/2-1/2

[Event "ESP-ch Teams Primera 2022"]
[Site "Sanxenxo Pontevedra"]
[Date "2022.09.17"]
[Round "1.17"]
[White "Bernabeu Lopez, Carlos Javier"]
[Black "Guadamuro Torrente, Anabel"]
[Result "1-0"]
[ECO "A11"]
[WhiteElo "2415"]
[BlackElo "2102"]
[Annotator "ChessBase"]
[PlyCount "61"]
[EventDate "2022.09.17"]
[EventType "team-tourn"]
[EventCountry "ESP"]
[SourceTitle "playchess.com"]
[Source "ChessBase"]
[SourceQuality "1"]
[TimeControl "5400+30"]

1. c4 {[%emt 0:00:06]} c6 {[%emt 0:00:10]} 2. e4 e5 {[%emt 0:00:12]} 3. Nf3 {[%emt 0:00:20]} d6 {[%emt 0:00:17]} 4. d4 {[%emt 0:00:24]} Nd7 {[%emt 0:02:59]} 5. Nc3 {[%emt 0:00:06]} Ngf6 {[%emt 0:00:33]} 6. Be2 {[%emt 0:00:10]} Be7 {[%emt 0:02:19]} 7. O-O {[%emt 0:00:12]} O-O {[%emt 0:00:30]} 8. d5 {[%emt 0:06:06]} c5 {[%emt 0:13:14]} 9. Ne1 {[%emt 0:00:07]} Re8 {[%emt 0:02:47]} 10. Nd3 {[%emt 0:06:06]} Bf8 {[%emt 0:05:33]} 11. Be3 {[%emt 0:11:16]} a6 12. a4 {[%emt 0:00:30]} Rb8 {[%emt 0:52:39]} 13. Kh1 {[%emt 0:00:30]} h6 {[%emt 0:00:30]} 14. Qd2 {[%emt 0:00:30]} Nb6 {[%emt 0:00:30]} 15. b3 {[%emt 0:00:30]} Ng4 {[%emt 0:00:30]} 16. Bxg4 {[%emt 0:00:30]} Bxg4 {[%emt 0:00:30]} 17. f3 {[%emt 0:00:30]} Bd7 {[%emt 0:00:30]} 18. f4 {[%emt 0:00:30]} exf4 {[%emt 0:00:30]} 19. Bxf4 {[%emt 0:00:30]} Bg4 {[%emt 0:12:30]} 20. e5 {[%emt 0:29:00]} Nd7 21. exd6 {[%emt 0:02:54]} g5 {[%emt 0:02:37]} 22. Bg3 {[%emt 0:00:23]} Bg7 {[%emt 0:00:41]} 23. Rac1 {[%emt 0:10:25]} Qa5 {[%emt 0:01:02]} 24. Rfe1 {[%emt 0:11:30]} Rbd8 {[%emt 0:00:47]} 25. Re7 Bf6 {[%emt 0:00:22]} 26. Qe1 {[%emt 0:01:35]} Bxe7 27. dxe7 {[%emt 0:00:06]} Ra8 {[%emt 0:00:40]} 28. d6 {[%emt 0:00:38]} Qb6 {[%emt 0:00:48]} 29. Nd5 {[%emt 0:00:48]} Qxb3 {[%emt 0:00:11]} 30. Ne5 {[%emt 0:00:14]} Nxe5 {[%emt 0:00:58]} 31. Qxe5 {[%emt 0:00:06]} 1-0